[Event "*** Titled Tuesday 3|2 Blitz"]
[Site "Chess.com"]
[Date "2015.12.01"]
[Round "2"]
[White "KnightSeeSix"]
[Black "tigra"]
[Result "0-1"]
[WhiteElo "2164"]
[BlackElo "2277"]
[TimeControl "180+2"]
[EndTime "17:21:28 PST"]
[Termination "tigra won by checkmate"]

1. e4 {[%clk 0:03:01.9]} 1... c5 {[%clk 0:02:59.3]} 2. Nf3 {[%clk 0:03:01.5]}
2... Nc6 {[%clk 0:03:00.2]} 3. d4 {[%clk 0:03:01.5]} 3... cxd4 {[%clk
0:03:00.8]} 4. Nxd4 {[%clk 0:03:03.4]} 4... g6 {[%clk 0:03:02.4]} 5. Be2 {[%clk
0:03:00.6]} 5... Bg7 {[%clk 0:03:02.7]} 6. Nxc6 {[%clk 0:02:52.7]} 6... bxc6
{[%clk 0:03:02.6]} 7. O-O {[%clk 0:02:53.3]} 7... d5 {[%clk 0:03:02.7]} 8. Bf3
{[%clk 0:02:51.4]} 8... Nf6 {[%clk 0:02:54.3]} 9. exd5 {[%clk 0:02:21.5]} 9...
cxd5 {[%clk 0:02:54.9]} 10. c4 {[%clk 0:02:21.7]} 10... e6 {[%clk 0:02:31.8]}
11. Nc3 {[%clk 0:02:19.2]} 11... Bb7 {[%clk 0:02:28.5]} 12. Bg5 {[%clk
0:02:15.4]} 12... O-O {[%clk 0:02:26.7]} 13. cxd5 {[%clk 0:02:13.4]} 13... exd5
{[%clk 0:02:26.9]} 14. Qb3 {[%clk 0:01:50.6]} 14... Ba6 {[%clk 0:02:09.9]} 15.
Rfd1 {[%clk 0:01:44.1]} 15... Bc4 {[%clk 0:01:43]} 16. Qa4 {[%clk 0:01:42.4]}
16... h6 {[%clk 0:01:40.5]} 17. Bxf6 {[%clk 0:01:26.9]} 17... Qxf6 {[%clk
0:01:39.2]} 18. Nxd5 {[%clk 0:01:06.1]} 18... Bxd5 {[%clk 0:01:37.4]} 19. Bxd5
{[%clk 0:01:08]} 19... Rad8 {[%clk 0:01:37.5]} 20. Rab1 {[%clk 0:01:02.4]} 20...
Qf5 {[%clk 0:01:29.7]} 21. Bf3 {[%clk 0:00:56.7]} 21... Bd4 {[%clk 0:01:24.9]}
22. b4 {[%clk 0:00:41.4]} 22... Rfe8 {[%clk 0:01:18.1]} 23. Re1 {[%clk
0:00:36.9]} 23... Re5 {[%clk 0:01:11.3]} 24. Rbd1 {[%clk 0:00:31.2]} 24... Kg7
{[%clk 0:00:54.1]} 25. Rxe5 {[%clk 0:00:27.4]} 25... Qxe5 {[%clk 0:00:54.7]} 26.
Qb3 {[%clk 0:00:24.4]} 26... Rc8 {[%clk 0:00:50.6]} 27. Qd3 {[%clk 0:00:23.2]}
27... Bb6 {[%clk 0:00:47.8]} 28. Qb3 {[%clk 0:00:14.6]} 28... h5 {[%clk
0:00:37.5]} 29. h3 {[%clk 0:00:12.9]} 29... h4 {[%clk 0:00:34.4]} 30. a4 {[%clk
0:00:12.7]} 30... Bc7 {[%clk 0:00:25.7]} 31. Qd5 {[%clk 0:00:10.6]} 31... Qh2+
{[%clk 0:00:25.5]} 32. Kf1 {[%clk 0:00:11.3]} 32... Re8 {[%clk 0:00:25.6]} 33.
Be4 {[%clk 0:00:10.9]} 33... Qh1+ {[%clk 0:00:24.1]} 34. Ke2 {[%clk 0:00:11.6]}
34... Qxg2 {[%clk 0:00:24.8]} 35. Kd3 {[%clk 0:00:08.7]} 35... Qxh3+ {[%clk
0:00:20.5]} 36. Kc4 {[%clk 0:00:08.9]} 36... Be5 {[%clk 0:00:19.5]} 37. Qc6
{[%clk 0:00:08.4]} 37... Rc8 {[%clk 0:00:19.1]} 38. Rd5 {[%clk 0:00:08]} 38...
Rxc6+ {[%clk 0:00:19.2]} 39. Kb5 {[%clk 0:00:09.5]} 39... Qc8 {[%clk 0:00:17.9]}
40. Rxe5 {[%clk 0:00:08.6]} 40... Qa6# {[%clk 0:00:18.2]} 0-1

[Event "*** Titled Tuesday 3|2 Blitz"]
[Site "Chess.com"]
[Date "2015.12.01"]
[Round "2"]
[White "GrigorGrigorov"]
[Black "Gabrielian_Artur"]
[Result "0-1"]
[WhiteElo "2528"]
[BlackElo "2538"]
[TimeControl "180+2"]
[EndTime "17:21:44 PST"]
[Termination "Gabrielian_Artur won by checkmate"]

1. d4 {[%clk 0:03:01.9]} 1... Nf6 {[%clk 0:02:59.6]} 2. c4 {[%clk 0:03:02.5]}
2... c5 {[%clk 0:02:58.4]} 3. d5 {[%clk 0:03:01.6]} 3... e6 {[%clk 0:02:59.5]}
4. Nc3 {[%clk 0:03:01.9]} 4... exd5 {[%clk 0:03:00.7]} 5. cxd5 {[%clk
0:03:02.7]} 5... d6 {[%clk 0:03:02.1]} 6. Nf3 {[%clk 0:03:03.5]} 6... g6 {[%clk
0:03:03]} 7. Bf4 {[%clk 0:03:04.5]} 7... a6 {[%clk 0:03:03.5]} 8. a4 {[%clk
0:03:04.8]} 8... Bg7 {[%clk 0:03:04.6]} 9. e4 {[%clk 0:03:05.3]} 9... O-O {[%clk
0:03:04.2]} 10. Be2 {[%clk 0:03:06.3]} 10... Bg4 {[%clk 0:03:03.1]} 11. O-O
{[%clk 0:03:06]} 11... Re8 {[%clk 0:03:03]} 12. Nd2 {[%clk 0:03:05.8]} 12...
Bxe2 {[%clk 0:03:03.4]} 13. Qxe2 {[%clk 0:03:07.4]} 13... Nh5 {[%clk 0:03:03.8]}
14. Be3 {[%clk 0:03:06.1]} 14... Nd7 {[%clk 0:03:04.4]} 15. g4 {[%clk
0:03:03.5]} 15... Nhf6 {[%clk 0:03:04.7]} 16. f3 {[%clk 0:02:44.2]} 16... Ne5
{[%clk 0:03:03.4]} 17. Kh1 {[%clk 0:02:41.6]} 17... h5 {[%clk 0:02:54.1]} 18. g5
{[%clk 0:02:40.6]} 18... Nh7 {[%clk 0:02:42.3]} 19. f4 {[%clk 0:02:39]} 19...
Nd7 {[%clk 0:02:30.3]} 20. e5 {[%clk 0:02:32.4]} 20... dxe5 {[%clk 0:02:25.5]}
21. f5 {[%clk 0:02:32.7]} 21... e4 {[%clk 0:01:41.2]} 22. Ncxe4 {[%clk
0:02:01.2]} 22... Ne5 {[%clk 0:01:40]} 23. d6 {[%clk 0:01:58.7]} 23... Ng4
{[%clk 0:01:37.7]} 24. fxg6 {[%clk 0:01:37.5]} 24... fxg6 {[%clk 0:01:37.3]} 25.
Qc4+ {[%clk 0:01:27.5]} 25... Kh8 {[%clk 0:01:37.8]} 26. Bf4 {[%clk 0:01:28.3]}
26... Rc8 {[%clk 0:01:30.1]} 27. Qf7 {[%clk 0:01:19.3]} 27... Nf8 {[%clk
0:01:17.2]} 28. Rae1 {[%clk 0:01:18.8]} 28... Qd7 {[%clk 0:01:07.5]} 29. Qd5
{[%clk 0:00:58.1]} 29... Ne6 {[%clk 0:00:47.9]} 30. Nc4 {[%clk 0:00:45.9]} 30...
Nxf4 {[%clk 0:00:47.8]} 31. Rxf4 {[%clk 0:00:47.5]} 31... Rf8 {[%clk 0:00:44.7]}
32. Ref1 {[%clk 0:00:42.2]} 32... Rxf4 {[%clk 0:00:36.7]} 33. Rxf4 {[%clk
0:00:43.6]} 33... Qxa4 {[%clk 0:00:37.4]} 34. d7 {[%clk 0:00:29.4]} 34... Rd8
{[%clk 0:00:37.9]} 35. Ned6 {[%clk 0:00:13.8]} 35... Qa1+ {[%clk 0:00:29.8]} 36.
Kg2 {[%clk 0:00:14.1]} 36... b5 {[%clk 0:00:30.5]} 37. Nf7+ {[%clk 0:00:13.7]}
37... Kh7 {[%clk 0:00:31.5]} 38. Nxd8 {[%clk 0:00:14.6]} 38... bxc4 {[%clk
0:00:32.8]} 39. Ne6 {[%clk 0:00:11.4]} 39... Ne3+ {[%clk 0:00:31.5]} 40. Kf3
{[%clk 0:00:11.2]} 40... Nxd5 {[%clk 0:00:30.4]} 41. d8=Q {[%clk 0:00:11.4]}
41... Qf1+ {[%clk 0:00:29.8]} 42. Ke4 {[%clk 0:00:11.7]} 42... Qd3# {[%clk
0:00:29.7]} 0-1

[Event "*** Titled Tuesday 3|2 Blitz"]
[Site "Chess.com"]
[Date "2015.12.01"]
[Round "2"]
[White "cheese111"]
[Black "gmjoey1"]
[Result "0-1"]
[WhiteElo "2201"]
[BlackElo "2430"]
[TimeControl "180+2"]
[EndTime "17:21:48 PST"]
[Termination "gmjoey1 won by resignation"]

1. e4 {[%clk 0:03:01.9]} 1... c6 {[%clk 0:02:55]} 2. d4 {[%clk 0:03:02]} 2... d5
{[%clk 0:02:53.6]} 3. Nd2 {[%clk 0:03:02.3]} 3... dxe4 {[%clk 0:02:53.6]} 4.
Nxe4 {[%clk 0:03:04.2]} 4... Nf6 {[%clk 0:02:53.9]} 5. Nxf6+ {[%clk 0:03:04.5]}
5... exf6 {[%clk 0:02:55.8]} 6. c3 {[%clk 0:03:04.6]} 6... Bd6 {[%clk 0:02:57]}
7. Bd3 {[%clk 0:03:05.4]} 7... O-O {[%clk 0:02:57.7]} 8. Ne2 {[%clk 0:03:06.1]}
8... Re8 {[%clk 0:02:57.5]} 9. Qc2 {[%clk 0:03:06.3]} 9... g6 {[%clk 0:02:56.4]}
10. Be3 {[%clk 0:03:05.2]} 10... Nd7 {[%clk 0:02:53.6]} 11. O-O-O {[%clk
0:03:01.5]} 11... Qc7 {[%clk 0:02:54.3]} 12. h4 {[%clk 0:03:01.6]} 12... Nf8
{[%clk 0:02:55.7]} 13. h5 {[%clk 0:02:59.7]} 13... b5 {[%clk 0:02:54.5]} 14. Kb1
{[%clk 0:02:38.5]} 14... Be6 {[%clk 0:02:54.8]} 15. Bh6 {[%clk 0:02:02]} 15...
a5 {[%clk 0:02:52.4]} 16. Ng3 {[%clk 0:01:54]} 16... f5 {[%clk 0:02:32.1]} 17.
Qd2 {[%clk 0:01:47.5]} 17... Bxg3 {[%clk 0:01:55.3]} 18. fxg3 {[%clk 0:01:47.8]}
18... Qd8 {[%clk 0:01:56.4]} 19. Bg5 {[%clk 0:01:38.5]} 19... Qd5 {[%clk
0:01:56.7]} 20. b3 {[%clk 0:00:27.5]} 20... a4 {[%clk 0:01:55.2]} 21. Bc2 {[%clk
0:00:25]} 21... axb3 {[%clk 0:01:53.5]} 22. Bxb3 {[%clk 0:00:25.9]} 22... Qd6
{[%clk 0:01:30.9]} 23. Bf4 {[%clk 0:00:20.6]} 23... Qa3 {[%clk 0:01:29.4]} 24.
Qb2 {[%clk 0:00:21.5]} 24... Bxb3 {[%clk 0:01:23.1]} 25. axb3 {[%clk 0:00:21.2]}
25... Qa6 {[%clk 0:01:11.7]} 26. Be5 {[%clk 0:00:21.6]} 26... Nd7 {[%clk
0:01:07.8]} 27. hxg6 {[%clk 0:00:22.6]} 27... fxg6 {[%clk 0:01:06.8]} 28. Rde1
{[%clk 0:00:21.9]} 28... Nxe5 {[%clk 0:01:04.9]} 29. dxe5 {[%clk 0:00:23.8]}
29... Re7 {[%clk 0:01:03.9]} 30. Re2 {[%clk 0:00:22.7]} 30... Rea7 {[%clk
0:01:03]} 31. Rhe1 {[%clk 0:00:20.6]} 31... b4 {[%clk 0:00:55.5]} 32. c4 {[%clk
0:00:21.3]} 32... Qa1+ {[%clk 0:00:55.2]} 33. Qxa1 {[%clk 0:00:22.3]} 33...
Rxa1+ {[%clk 0:00:56.4]} 34. Kc2 {[%clk 0:00:24.2]} 34... Rxe1 {[%clk
0:00:55.2]} 35. Rxe1 {[%clk 0:00:26.1]} 35... Kf7 {[%clk 0:00:56]} 36. Kd3
{[%clk 0:00:28]} 36... c5 {[%clk 0:00:51.9]} 37. Re2 {[%clk 0:00:27]} 37... Ke6
{[%clk 0:00:48.8]} 38. Rb2 {[%clk 0:00:21]} 38... Ra3 {[%clk 0:00:45.6]} 39. Ke3
{[%clk 0:00:21.3]} 39... Kxe5 {[%clk 0:00:46.3]} 40. Kd3 {[%clk 0:00:22.5]}
40... g5 {[%clk 0:00:45]} 41. Ke3 {[%clk 0:00:23.3]} 41... f4+ {[%clk
0:00:41.2]} 42. gxf4+ {[%clk 0:00:25.2]} 42... gxf4+ {[%clk 0:00:42.3]} 43. Kd3
{[%clk 0:00:26.4]} 43... h5 {[%clk 0:00:41.7]} 44. Rb1 {[%clk 0:00:23]} 44...
Kf5 {[%clk 0:00:42.4]} 45. Rb2 {[%clk 0:00:20.8]} 45... h4 {[%clk 0:00:43.4]}
46. Rb1 {[%clk 0:00:18.6]} 46... Ra2 {[%clk 0:00:44.4]} 47. Rg1 {[%clk
0:00:16.1]} 47... Rb2 {[%clk 0:00:43]} 48. Rh1 {[%clk 0:00:16.9]} 48... Rxb3+
{[%clk 0:00:43.5]} 49. Kd2 {[%clk 0:00:18.1]} 49... Rc3 {[%clk 0:00:37.2]} 50.
Rxh4 {[%clk 0:00:18.2]} 50... Rxc4 {[%clk 0:00:38.5]} 0-1

[Event "*** Titled Tuesday 3|2 Blitz"]
[Site "Chess.com"]
[Date "2015.12.01"]
[Round "2"]
[White "Anton_Demchenko"]
[Black "dretch"]
[Result "0-1"]
[WhiteElo "2661"]
[BlackElo "2436"]
[TimeControl "180+2"]
[EndTime "17:21:50 PST"]
[Termination "dretch won by resignation"]

1. e4 {[%clk 0:03:01.9]} 1... e6 {[%clk 0:03:00.5]} 2. d4 {[%clk 0:02:53.5]}
2... d5 {[%clk 0:03:01.7]} 3. Nc3 {[%clk 0:02:52.5]} 3... Nf6 {[%clk 0:03:02.3]}
4. e5 {[%clk 0:02:53.2]} 4... Nfd7 {[%clk 0:03:03.7]} 5. Nce2 {[%clk 0:02:54.2]}
5... c5 {[%clk 0:03:04.4]} 6. c3 {[%clk 0:02:56.1]} 6... Nc6 {[%clk 0:03:04.9]}
7. f4 {[%clk 0:02:57.2]} 7... b5 {[%clk 0:03:05.4]} 8. a3 {[%clk 0:02:52.9]}
8... b4 {[%clk 0:03:04.2]} 9. axb4 {[%clk 0:02:50.8]} 9... cxb4 {[%clk
0:03:05.4]} 10. Nf3 {[%clk 0:02:52]} 10... Be7 {[%clk 0:03:03.6]} 11. Ng3 {[%clk
0:02:51.5]} 11... O-O {[%clk 0:03:02.3]} 12. Bd3 {[%clk 0:02:52]} 12... g6
{[%clk 0:03:00.7]} 13. h4 {[%clk 0:02:51.4]} 13... a5 {[%clk 0:03:00.9]} 14. h5
{[%clk 0:02:50.3]} 14... Ba6 {[%clk 0:03:02]} 15. hxg6 {[%clk 0:02:50.3]} 15...
fxg6 {[%clk 0:03:01.9]} 16. Be3 {[%clk 0:02:38.1]} 16... Bxd3 {[%clk 0:03:00]}
17. Qxd3 {[%clk 0:02:39.1]} 17... Rf7 {[%clk 0:02:57.9]} 18. Nh2 {[%clk
0:02:26.8]} 18... Bh4 {[%clk 0:02:52]} 19. Bd2 {[%clk 0:02:26.7]} 19... h5
{[%clk 0:02:44]} 20. Ke2 {[%clk 0:02:20.5]} 20... Nf8 {[%clk 0:02:37.4]} 21.
Ngf1 {[%clk 0:02:06.1]} 21... Rh7 {[%clk 0:02:20.7]} 22. g4 {[%clk 0:01:56.5]}
22... Be7 {[%clk 0:02:21]} 23. gxh5 {[%clk 0:01:53.3]} 23... Rxh5 {[%clk
0:02:20.9]} 24. Ng3 {[%clk 0:01:54.2]} 24... Rh4 {[%clk 0:02:12.9]} 25. Rag1
{[%clk 0:01:34.9]} 25... bxc3 {[%clk 0:02:09.7]} 26. bxc3 {[%clk 0:01:35.4]}
26... Qc8 {[%clk 0:02:04.9]} 27. Kf2 {[%clk 0:01:10.1]} 27... Kf7 {[%clk
0:01:52.4]} 28. Nf3 {[%clk 0:00:57.4]} 28... Rxh1 {[%clk 0:01:52.1]} 29. Rxh1
{[%clk 0:00:59.3]} 29... Qa6 {[%clk 0:01:53.9]} 30. Qc2 {[%clk 0:00:55.6]} 30...
a4 {[%clk 0:01:53.5]} 31. f5 {[%clk 0:00:40]} 31... gxf5 {[%clk 0:01:51.8]} 32.
Nxf5 {[%clk 0:00:26.2]} 32... exf5 {[%clk 0:01:46.2]} 33. Qxf5+ {[%clk
0:00:28.1]} 33... Ke8 {[%clk 0:01:47.4]} 34. Rh8 {[%clk 0:00:24.8]} 34... Nd8
{[%clk 0:01:28.9]} 35. Bg5 {[%clk 0:00:13]} 35... Qe6 {[%clk 0:01:24.3]} 36. Qf4
{[%clk 0:00:11.1]} 36... Nf7 {[%clk 0:01:21.8]} 37. Bxe7 {[%clk 0:00:09.7]}
37... Qxe7 {[%clk 0:01:22.2]} 38. Rg8 {[%clk 0:00:10]} 38... a3 {[%clk
0:01:19.2]} 39. e6 {[%clk 0:00:10.7]} 39... Qxe6 {[%clk 0:01:11.6]} 40. Ng5
{[%clk 0:00:11.8]} 40... Qe7 {[%clk 0:01:12.5]} 41. Nh7 {[%clk 0:00:11.7]} 41...
Kd7 {[%clk 0:00:49.2]} 42. Nf6+ {[%clk 0:00:11.4]} 42... Kc6 {[%clk 0:00:49.5]}
43. c4 {[%clk 0:00:11.3]} 43... a2 {[%clk 0:00:43.9]} 44. Nxd5 {[%clk
0:00:11.8]} 44... Qd6 {[%clk 0:00:38.4]} 45. Qxf7 {[%clk 0:00:12.6]} 45... a1=Q
{[%clk 0:00:34.7]} 46. Ne7+ {[%clk 0:00:12.6]} 46... Qxe7 {[%clk 0:00:34.4]} 47.
Qxe7 {[%clk 0:00:13.2]} 47... Ra2+ {[%clk 0:00:35.6]} 48. Kf3 {[%clk 0:00:11.2]}
48... Qf1+ {[%clk 0:00:36.5]} 49. Kg4 {[%clk 0:00:10.9]} 49... Rg2+ {[%clk
0:00:36.7]} 0-1

[Event "*** Titled Tuesday 3|2 Blitz"]
[Site "Chess.com"]
[Date "2015.12.01"]
[Round "2"]
[White "Tirantes"]
[Black "ntmh281"]
[Result "1-0"]
[WhiteElo "2237"]
[BlackElo "2070"]
[TimeControl "180+2"]
[EndTime "17:21:52 PST"]
[Termination "Tirantes won on time"]

1. c4 {[%clk 0:03:01.9]} 1... Nf6 {[%clk 0:02:58]} 2. Nc3 {[%clk 0:03:01.7]}
2... e6 {[%clk 0:02:58.1]} 3. Nf3 {[%clk 0:03:00.3]} 3... d5 {[%clk 0:02:58.8]}
4. d4 {[%clk 0:03:00.5]} 4... c6 {[%clk 0:02:57]} 5. e3 {[%clk 0:02:56.7]} 5...
Nbd7 {[%clk 0:02:53]} 6. b3 {[%clk 0:02:57.3]} 6... Bb4 {[%clk 0:02:41.7]} 7.
Bd2 {[%clk 0:02:57.1]} 7... O-O {[%clk 0:02:39.8]} 8. Qc2 {[%clk 0:02:57.4]}
8... Qe7 {[%clk 0:02:35]} 9. Rd1 {[%clk 0:02:54.3]} 9... Re8 {[%clk 0:02:31.8]}
10. Be2 {[%clk 0:02:43.7]} 10... e5 {[%clk 0:02:28.8]} 11. dxe5 {[%clk
0:02:40.7]} 11... Nxe5 {[%clk 0:02:29.5]} 12. cxd5 {[%clk 0:02:40.3]} 12... cxd5
{[%clk 0:02:27.4]} 13. O-O {[%clk 0:02:25.9]} 13... Bd6 {[%clk 0:02:16.2]} 14.
Nb5 {[%clk 0:02:04.6]} 14... Bb8 {[%clk 0:02:16]} 15. Bc3 {[%clk 0:01:55.8]}
15... Neg4 {[%clk 0:02:05.6]} 16. h3 {[%clk 0:01:47.2]} 16... Nxe3 {[%clk
0:01:59.6]} 17. Bxf6 {[%clk 0:01:08.7]} 17... Nxc2 {[%clk 0:01:25.8]} 18. Bxe7
{[%clk 0:01:08.6]} 18... Rxe7 {[%clk 0:01:24.6]} 19. Rxd5 {[%clk 0:01:08.4]}
19... Bd7 {[%clk 0:01:19.9]} 20. Rfd1 {[%clk 0:01:03.7]} 20... Be8 {[%clk
0:01:13]} 21. Bc4 {[%clk 0:00:54.1]} 21... a6 {[%clk 0:01:05.5]} 22. Nbd4 {[%clk
0:00:40.2]} 22... Nb4 {[%clk 0:00:59.2]} 23. Rg5 {[%clk 0:00:28]} 23... h6
{[%clk 0:00:27.1]} 24. Nf5 {[%clk 0:00:28.1]} 24... hxg5 {[%clk 0:00:27.6]} 25.
Nxe7+ {[%clk 0:00:28.8]} 25... Kf8 {[%clk 0:00:28]} 26. Nd5 {[%clk 0:00:27.5]}
26... Nxd5 {[%clk 0:00:20.8]} 27. Bxd5 {[%clk 0:00:27.8]} 27... Bf4 {[%clk
0:00:16.1]} 28. g3 {[%clk 0:00:26.5]} 28... Bc7 {[%clk 0:00:14.9]} 29. Bxb7
{[%clk 0:00:26.8]} 29... Ra7 {[%clk 0:00:15.4]} 30. Bd5 {[%clk 0:00:25.4]} 30...
f6 {[%clk 0:00:16.3]} 31. Bc4 {[%clk 0:00:23.2]} 31... Bh5 {[%clk 0:00:14.7]}
32. g4 {[%clk 0:00:22.6]} 32... Bg6 {[%clk 0:00:15.2]} 33. Nd4 {[%clk
0:00:23.3]} 33... Be5 {[%clk 0:00:11.5]} 34. Ne6+ {[%clk 0:00:17.5]} 34... Ke7
{[%clk 0:00:11.8]} 35. Nxg7 {[%clk 0:00:17.1]} 35... a5 {[%clk 0:00:11.2]} 36.
Ne6 {[%clk 0:00:15.5]} 36... a4 {[%clk 0:00:09.9]} 37. Nc5 {[%clk 0:00:14.9]}
37... axb3 {[%clk 0:00:10.1]} 38. Bxb3 {[%clk 0:00:15]} 38... Rc7 {[%clk
0:00:08.7]} 39. Rc1 {[%clk 0:00:10.4]} 39... Bd4 {[%clk 0:00:06.9]} 40. Nd3
{[%clk 0:00:09.4]} 40... Rd7 {[%clk 0:00:04.3]} 41. Nb4 {[%clk 0:00:09.9]} 1-0

[Event "*** Titled Tuesday 3|2 Blitz"]
[Site "Chess.com"]
[Date "2015.12.01"]
[Round "2"]
[White "Alliswell998"]
[Black "Fandorine"]
[Result "1-0"]
[WhiteElo "2126"]
[BlackElo "2520"]
[TimeControl "180+2"]
[EndTime "17:21:58 PST"]
[Termination "Alliswell998 won by resignation"]

1. e4 {[%clk 0:03:01.9]} 1... c6 {[%clk 0:03:00.3]} 2. d4 {[%clk 0:03:02.5]}
2... d5 {[%clk 0:03:02]} 3. exd5 {[%clk 0:03:04.4]} 3... cxd5 {[%clk 0:03:03.3]}
4. Bd3 {[%clk 0:03:06]} 4... Nc6 {[%clk 0:03:05]} 5. c3 {[%clk 0:03:07.4]} 5...
g6 {[%clk 0:03:06.6]} 6. Nf3 {[%clk 0:03:07.2]} 6... Bg7 {[%clk 0:03:08.2]} 7.
Bf4 {[%clk 0:03:06.8]} 7... Nf6 {[%clk 0:03:09.8]} 8. Nbd2 {[%clk 0:03:06.5]}
8... O-O {[%clk 0:03:11.4]} 9. O-O {[%clk 0:03:06.7]} 9... Bf5 {[%clk
0:03:12.9]} 10. Bxf5 {[%clk 0:03:06.4]} 10... gxf5 {[%clk 0:03:13.9]} 11. Ne5
{[%clk 0:03:07.9]} 11... e6 {[%clk 0:03:14.6]} 12. Qe2 {[%clk 0:02:58.1]} 12...
Ne4 {[%clk 0:03:15.7]} 13. Nxc6 {[%clk 0:02:55.1]} 13... bxc6 {[%clk 0:03:16.7]}
14. f3 {[%clk 0:02:55.8]} 14... Nd6 {[%clk 0:03:12.2]} 15. Be5 {[%clk
0:02:55.9]} 15... f6 {[%clk 0:03:07.8]} 16. Bg3 {[%clk 0:02:55.4]} 16... Re8
{[%clk 0:03:08.7]} 17. Nb3 {[%clk 0:02:53.7]} 17... e5 {[%clk 0:03:07.9]} 18.
Qc2 {[%clk 0:02:48.3]} 18... f4 {[%clk 0:02:59.2]} 19. Bf2 {[%clk 0:02:47.6]}
19... Qd7 {[%clk 0:03:00]} 20. Nc5 {[%clk 0:02:46.8]} 20... Qf5 {[%clk
0:03:00.9]} 21. Qa4 {[%clk 0:02:41.1]} 21... Rac8 {[%clk 0:02:59]} 22. Rae1
{[%clk 0:02:33.8]} 22... Nc4 {[%clk 0:02:52.9]} 23. Re2 {[%clk 0:02:17.3]} 23...
Bh6 {[%clk 0:02:53.7]} 24. b3 {[%clk 0:02:13.5]} 24... Ne3 {[%clk 0:02:54.6]}
25. Rfe1 {[%clk 0:02:09.8]} 25... Kh8 {[%clk 0:02:54.5]} 26. Kh1 {[%clk
0:02:04.2]} 26... Rg8 {[%clk 0:02:50.7]} 27. Bxe3 {[%clk 0:02:03.7]} 27... fxe3
{[%clk 0:02:51.9]} 28. Qxa7 {[%clk 0:01:59.3]} 28... Rg7 {[%clk 0:02:40.5]} 29.
Qa6 {[%clk 0:01:55.2]} 29... Rcg8 {[%clk 0:02:41.8]} 30. Qxc6 {[%clk 0:01:45.7]}
30... exd4 {[%clk 0:01:23.9]} 31. cxd4 {[%clk 0:01:41.5]} 31... Re7 {[%clk
0:01:24.9]} 32. b4 {[%clk 0:01:27.3]} 32... Bf4 {[%clk 0:01:23.4]} 33. g4 {[%clk
0:01:17.7]} 33... Qg6 {[%clk 0:01:04.3]} 34. Qxd5 {[%clk 0:01:14.6]} 34... Rb8
{[%clk 0:01:02.5]} 35. a3 {[%clk 0:00:58.8]} 35... Qh6 {[%clk 0:01:03.7]} 36.
Ne4 {[%clk 0:00:56.9]} 36... Rf8 {[%clk 0:00:42.8]} 37. Qf5 {[%clk 0:00:50]}
37... Ra7 {[%clk 0:00:42.7]} 38. Ra1 {[%clk 0:00:42.1]} 38... Kg7 {[%clk
0:00:24.1]} 39. Nc5 {[%clk 0:00:40.1]} 39... Re8 {[%clk 0:00:13.2]} 40. Ne6+
{[%clk 0:00:39.7]} 40... Rxe6 {[%clk 0:00:14.4]} 41. Qxe6 {[%clk 0:00:41.2]}
41... Qh3 {[%clk 0:00:08.7]} 42. Qe4 {[%clk 0:00:33.9]} 42... Rxa3 {[%clk
0:00:09.6]} 43. Rg1 {[%clk 0:00:21.3]} 43... Qh6 {[%clk 0:00:07.4]} 44. b5
{[%clk 0:00:20.5]} 44... Qg5 {[%clk 0:00:02.7]} 45. Qe7+ {[%clk 0:00:20.4]}
45... Kg6 {[%clk 0:00:03.9]} 46. Qxa3 {[%clk 0:00:21]} 46... Qh5 {[%clk
0:00:05.4]} 47. gxh5+ {[%clk 0:00:21.6]} 1-0